Workbook

Sheet Table rentabilité optimisé
B2: ETUDE RENTABILITE SOLUTIONS USAGE PRODUCTIF
B3: chambre froide
B5: Dimmensionnement réel
B6: Dimmensionnement optimisé
B7: Dimmensionnement réel
B10: Cases à vérifier
B11: Cases à compléter
B12: Cases à laisser vides
B13: Cases calculées
B15: Caractéristiques techniques du Projet
B17: Usage Productif | C17: Rendement (kg/jour) | D17: Puissance (kW) | F17: Prix (FCFA) | G17: Energie consommée (KWh/j) | H17: Energie à produire (kWh/j) | I17: Fonctionnement optimal | K17: Coefficient déperdition (k)
D18: Max | E18: Nominale | I18: heures par jour | J18: jours à l'année
B19: chambre froide 20 m3 | C19: 1800 | D19: - | E19: 0.9 | F19: 6556749.38 | G19: =E19*I19 -> 21.6 | H19: =E19*I19/K19 -> 27 | I19: 24 | J19: 365 | K19: 0.8
D20: - | H20: =E20*I20/K20 -> 0 | I20: 16 | J20: 365 | K20: 0.8
D21: - | H21: =E21*I21/K21 -> 0 | I21: 16 | J21: 365 | K21: 0.8
B25: Equipements complementaires | C25: Puissance (kW) | D25: Nombre | E25: Consommation énergétique (kWh/jour) | F25: Fonctionnement | G25: Prix (FCFA)
F26: h/jour
B27: Hangar | D27: 1 | E27: =C27*F27 -> 0 | G27: 4500000
B28: Autres accessoires (petits matériels) | D28: 1 | E28: 0 | G28: 857007.82
B29: main d'eoeuvre | D29: 1 | E29: 0 | G29: 4478218.44
E30: 0
E31: 0
E32: 0
E33: - | F33: -
B35: Parafoudre | G35: 12510
B36: Puit | G36: 500000
B37: Local technique | G37: 2206450
B38: Câbles et accessoires | G38: 250000
B39: Installation & transport équipements | G39: 1374000
B40: Support alluminium | G40: 17000
B42: Alimentation Solaire | C42: Puissance (kW) | D42: Prix (FCFA) | E42: Coefficient déperdition | F42: Tension (V) | H42: Batteries | I42: Capacité (Ampères/h) | J42: Prix (FCFA) | K42: Tension (V) | L42: Durée de vie* | M42: * en conditions optimales, annoncées constructeur
B43: Modules polycristallins 275 W | C43: 0.275 | D43: 50000 | E43: 0.6 | F43: 24V | H43: OPzV 2V | I43: 500 | J43: 136000 | K43: 2 | L43: 10
B44: Modules polycristallins 300 W | C44: 0.3 | D44: 70000 | H44: Gel 220Ah 12V | I44: 220 | J44: 360250 | K44: 12 | L44: 10
H45: Batteries (1018 Ah/C20, 2V 2230Ah/C100) | I45: 2230 | J45: 257594.31 | K45: 2
B46: Tension nécessaire | C46: =IF(J46<0.5,"12V",IF(AND(J46>=0.5,J46<2),"24V",IF(J46>=2,"48V"))) -> 48V | H46: Tension nécessaire batteries | I46: =IF(J46<0.5,12,IF(AND(J46>=0.5,J46<2),24,IF(J46>=2,48))) -> 48 | J46: =F97*INDEX(C:C,MATCH(F76,B:B,0)) -> 4.675
B48: Onduleur | C48: kVa | D48: Prix (FCFA) | H48: Régulateur | I48: tension /courant | J48: Prix (FCFA) | K48: Tension (V)
B49: Victron quatro 5 kW | C49: 5 | D49: 1426500 | H49: VICTRON MPPT 150/85 | I49: 150V/85A | J49: 315000 | K49: 12V/24V/48V
B50: Onduleurs (48volt/3000va) | C50: 3 | D50: 421387 | H50: Régulateurs (MPPT150/60) | I50: 100V/60A | J50: 208332 | K50: 12V/24V/48V
B52: Irradiation Solaire
B53: Month | C53: Jan | D53: Feb | E53: Mar | F53: Apr | G53: May | H53: Jun | I53: Jul | J53: Aug | K53: Sep | L53: Oct | M53: Nov | N53: Dec | O53: Year
B54: H(15)* | C54: 5.12 | D54: 5.75 | E54: 6.37 | F54: 6.61 | G54: 6.34 | H54: 6.05 | I54: 6.26 | J54: 5.51 | K54: 6.03 | L54: 5.81 | M54: 5.226 | N54: 5.03 | O54: 6.01
B56: Électricité du réseau | D56: 1ère Tranche | E56: 2ème Tranche | F56: 3ème Tranche | J56: 1ère Tranche | K56: 2ème Tranche | L56: 3ème Tranche | M56: Total
B57: UP-Petite Puissance | C57: Tranche (KWh) | D57: 50 | E57: 500 | F57: ∞ | H57: UP-Petite Puissance | I57: Energie par Tranche | J57: =(F91*30)-SUM(K57:L57) -> 50 | K57: =IF((F91*30)>D57,(F91*30)-D57-L57,0) -> 450 | L57: =IF((F91*30)>E57,(F91*30)-E57,0) -> 148 | M57: =SUM(J57:L57) -> 648
C58: Prix (KWh) | D58: 128.85 | E58: 135.68 | F58: 147.68 | I58: Coût (FCFA) | J58: =J57*D58 -> 6442.5 | K58: =K57*E58 -> 61056 | L58: =L57*F58 -> 21856.64 | M58: =SUM(J58:L58) -> 89355.14
B59: UP-Moyenne Puissance | C59: Tranche | D59: 100 | E59: 500 | F59: ∞ | H59: UP-Moyenne Puissance | I59: Energie par Tranche | J59: =(F91*30)-SUM(K59:L59) -> 100 | K59: =IF((F91*30)>D59,(F91*30)-D59-L59,0) -> 400 | L59: =IF((F91*30)>E59,(F91*30)-E59,0) -> 148 | M59: =SUM(J59:L59) -> 648
C60: Prix (KWh) | D60: 129.81 | E60: 136.53 | F60: 149.24 | I60: Coût (FCFA) | J60: =J59*D60 -> 12981 | K60: =K59*E60 -> 54612 | L60: =L59*F60 -> 22087.52 | M60: =SUM(J60:L60) -> 89680.52
B62: Frais fixes de raccordement | C62: Fixe/Distance | D62: Prix TTC | E62: Étude raccordement
B63: Réseau HTA | C63: Kg câble | D63: 10.000 à 100.000 | E63: 550000
B64: Réseau HTA - Autres Frais | C64: Fixe | D64: 2.000.000 à 7.000.000 | E64: 550000
B65: Transformateur HT/MT - BT | C65: Fixe | D65: 4800000 | E65: 179000
B66: Extension BT* | C66: Distance | D66: 8260 | E66: 179000
B67: Dépend également de la distance de transport des équipements et nombre et type de poteaux non mesurable sauf par Sénélec (approximation)
B70: Choix de dimensionnement du projet
B72: quantité min stockée souhaitée (kg /jour) | F72: =C19 -> 1800
B73: Répartition clients internes/externes | F73: 0.5 | G73: 0.5
B75: Choix de la chambre froide | F75: chambre froide 20 m3
B76: Choix de l'alimentation solaire | F76: Modules polycristallins 275 W
B77: Choix du système de stokage | F77: Batteries (1018 Ah/C20, 2V 2230Ah/C100)
B78: Choix de l'onduleur | F78: Onduleurs (48volt/3000va)
B79: Choix du régulateur | F79: Régulateurs (MPPT150/60)
B80: Equivalent Réseau | F80: =IF(M57<M59,B57,B59) -> UP-Moyenne Puissance
B81: Raccordement nécessaire (MT, BT) et distance | F81: MT | G81: 500
B82: Montant Frais HTA et KG câble | F82: 4462549 | G82: 30
B84: Autonomie nécessaires au projet (jours) | F84: 1
B85: Profondeur décharge batteries | F85: 0.8
B87: Choix du cas pour dimensionnement solaire | F87: best case
F88: worst case
F89: average | G89: x
B91: Energie journalière consommée (KWh) | F91: =SUM(E27:E33)+INDEX(G:G,MATCH(F75,B:B,0)) -> 21.6 | G91: KWh
B92: Puissance crête projet (KW) | F92: =(INDEX(H:H,MATCH(F75,B:B,0))+SUM(E27:E32))/O54*F95 -> 4.492512479 | G92: KW
B93: Capacité totale système stockage (Ampères/heure) | F93: =(INDEX(G:G,MATCH(F75,B:B,0))+SUM(E27:E32))*1000*(F84)/(F85*I46) -> 562.5 | G93: Ah
B95: Nb de chambre froide | F95: =ROUNDUP(F72/(C19),0) -> 1 | G95: unités
B96: Puissance equippement journaliere majoré (KW) | F96: =(INDEX(E:E,MATCH(F75,B:B,0))+SUM(C27:C33))*2 -> 1.8
B97: Nb de panneaux solaires | F97: =ROUNDUP(F92/INDEX(C:C,MATCH(F76,B:B,0)),0) -> 17 | G97: unités
B98: Nb de batteries en série | F98: =I46/INDEX(K:K,MATCH(F77,H:H,0)) -> 24 | G98: unités
B99: Nb de batteries en dérivation | F99: =ROUNDUP(F93/INDEX(I:I,MATCH(F77,H:H,0)),0) -> 1 | G99: unités
B100: Nb de batteries total | F100: =F98*F99 -> 24 | G100: unités
B101: Durée de vie attendue de la batterie | F101: 7 | G101: ans
B102: Nb régulateurs | F102: =IF(OR(C46=24,C46=12),1,2) -> 2 | G102: unités
B103: Nb onduleurs | F103: =ROUNDUP(F96/INDEX(C:C,MATCH(F78,B:B,0)),0) -> 1 | G103: unités
B105: Ratio de fonctionnement | F105: 0.9
B106: Employés nécessaires pour fonctionnement | F106: 1 | G106: personnes
B107: Intrant annuel attendu | F107: =INDEX(C:C,MATCH($F$75,B:B,0))*INDEX(J:J,MATCH($F$75,B:B,0))*F105*F95 -> 591300 | G107: Kilos
B108: Extrant annuel attendu
B110: Calcul de charges variables et fixes
B112: CHARGES VARIABLES D'EXPLOITATION
B113: Désignation | C113: Quantité | E113: Prix unitaire | F113: Montant total/an | G113: Montant total/mois | H113: évolution annuelle charges d'exploitation | K113: 0.02
B114: Maintenance et réparation des équipements | C114: 12 | E114: 25000 | F114: =E114*C114 -> 300000
B115: Achat de casiers de légumes 50x30 | C115: 300 | E115: 2000 | F115: =E115*C115 -> 600000 | H115: Avantage coût électricité PV vs. Réseau | J115: Sur 1 an | K115: =((MIN(M60,M58)*12)+IF(F81="MT",(G81*D66)+D65+E63+F82,(G81*D66)))-(SUM(F142:F147,F152)+SUM(G142:G147,G152)) -> 14551285.23
B116: Motivation comité de la chambre froide | C116: 12 | E116: 15000 | F116: 180000 | J116: Sur 5 ans | K116: =((MIN(M60,M58)*12*5)+IF(F81="MT",(G81*D66)+D65+E63+F82,(G81*D66)))-(SUM(F142:F147,F152)+(SUM(G142:G147,G152)*5)) -> 18671777.24
B117: Recherche de marché | C117: 1 | E117: 324000 | F117: 324000
B118: Sous Total | F118: =SUM(F114:F117) -> 1404000
B119: Imprévus (1%) | F119: =F118*1% -> 14040
J120: Sur 10 ans | K120: =((MIN(M60,M58)*12*10)+IF(F81="MT",(G81*D66)+D65+E63+F82,(G81*D66)))-(SUM(F142:F147,F152)+(SUM(G142:G147,G152)*10)) -> 23822392.26
B121: TOTAL (F CFA) | F121: =F118+F119 -> 1418040 | G121: =F121/12 -> 118170
B123: INVESTISSEMENTS
B124: Désignation | C124: Quantité | D124: Prix unitaire TTC | E124: Durée de vie (an) | F124: Montant Total TTC | G124: Amortissement annuel
B125: chambre froide 20 m3 | C125: =IF($B$5=INDEX($B$6:$B$7,1,1),F95,'investissement réel'!C5) -> 1 | D125: =IF($B$5=INDEX($B$6:$B$7,1,1),INDEX(F:F,MATCH(F75,B:B,0)),'investissement réel'!D5) -> 6556749.38 | E125: 15 | F125: =C125*D125 -> 6556749.38 | G125: =IFERROR(F125/E125,0) -> 437116.6253
B126: Panneaux solaire 275KW | C126: =IF($B$5=INDEX($B$6:$B$7,1,1),F97,'investissement réel'!C4) -> 16 | D126: =IF($B$5=INDEX($B$6:$B$7,1,1),INDEX(D:D,MATCH(F76,B:B,0)),'investissement réel'!D4) -> 47622.48 | E126: 20 | F126: =C126*D126 -> 761959.68 | G126: =IFERROR(F126/E126,0) -> 38097.984
B127: Batteries (1018 Ah/C20, 2V 2230Ah/C100) | C127: =IF($B$5=INDEX($B$6:$B$7,1,1),F100,'investissement réel'!C6) -> 24 | D127: =IF($B$5=INDEX($B$6:$B$7,1,1),INDEX(J:J,MATCH(F77,H:H,0)),'investissement réel'!D6) -> 257594.31 | E127: 5 | F127: =C127*D127 -> 6182263.44 | G127: =IFERROR(F127/E127,0) -> 1236452.688
B128: Hangar | C128: =IF($B$5=INDEX($B$6:$B$7,1,1),D27,'investissement réel'!C7) -> 1 | D128: =IF($B$5=INDEX($B$6:$B$7,1,1),G27,'investissement réel'!D7) -> 4500000 | E128: 10 | F128: 4500000 | G128: 450000
B129: Autres accessoires (petits matériels) | C129: =IF($B$5=INDEX($B$6:$B$7,1,1),D28,'investissement réel'!C8) -> 1 | D129: =IF($B$5=INDEX($B$6:$B$7,1,1),G28,'investissement réel'!D8) -> 857007.82 | E129: 10 | F129: 857007.82 | G129: 85700.782
B130: Onduleurs (48volt/4000va) | C130: =IF($B$5=INDEX($B$6:$B$7,1,1),F103,'investissement réel'!C9) -> 1 | D130: =IF($B$5=INDEX($B$6:$B$7,1,1),INDEX(D:D,MATCH(F78,B:B,0)),'investissement réel'!D9) -> 313875.42 | E130: 10 | F130: 313875.42 | G130: 31387.542
B131: Régulateurs (MPPT150/60) | C131: =IF($B$5=INDEX($B$6:$B$7,1,1),F102,'investissement réel'!C10) -> 1 | D131: =IF($B$5=INDEX($B$6:$B$7,1,1),INDEX(J:J,MATCH(F79,H:H,0)),'investissement réel'!D10) -> 322009.29 | E131: 10 | F131: 322009.29 | G131: 32200.929
B132: Main d'œuvre | C132: =IF($B$5=INDEX($B$6:$B$7,1,1),D29,'investissement réel'!C11) -> 1 | D132: =IF($B$5=INDEX($B$6:$B$7,1,1),G29,'investissement réel'!D11) -> 4478218.44 | F132: 4478218.44 | G132: 0
C133: =IF($B$5=INDEX($B$6:$B$7,1,1),96,'investissement réel'!C12) -> 1 | D133: =IF($B$5=INDEX($B$6:$B$7,1,1),G32,'investissement réel'!D12) -> 421386.77 | E133: 15
C134: =IF($B$5=INDEX($B$6:$B$7,1,1),96,'investissement réel'!C13) -> 0 | D134: =IF($B$5=INDEX($B$6:$B$7,1,1),G33,'investissement réel'!D13) -> 0 | E134: 15
C135: =IF($B$5=INDEX($B$6:$B$7,1,1),96,'investissement réel'!C14) -> 0 | D135: =IF($B$5=INDEX($B$6:$B$7,1,1),G34,'investissement réel'!D14) -> 0 | E135: 15
C136: =IF($B$5=INDEX($B$6:$B$7,1,1),96,'investissement réel'!C15) -> 0 | D136: =IF($B$5=INDEX($B$6:$B$7,1,1),G35,'investissement réel'!D15) -> 0 | E136: 15
C137: =IF($B$5=INDEX($B$6:$B$7,1,1),96,'investissement réel'!C16) -> 0 | D137: =IF($B$5=INDEX($B$6:$B$7,1,1),G36,'investissement réel'!D16) -> 0 | E137: 15
C138: =IF($B$5=INDEX($B$6:$B$7,1,1),96,'investissement réel'!C17) -> 0 | D138: =IF($B$5=INDEX($B$6:$B$7,1,1),G37,'investissement réel'!D17) -> 0 | E138: 15
C139: =IF($B$5=INDEX($B$6:$B$7,1,1),96,'investissement réel'!C18) -> 0 | D139: =IF($B$5=INDEX($B$6:$B$7,1,1),G38,'investissement réel'!D18) -> 0 | E139: 15
C140: =IF($B$5=INDEX($B$6:$B$7,1,1),96,'investissement réel'!C19) -> 0 | D140: =IF($B$5=INDEX($B$6:$B$7,1,1),G39,'investissement réel'!D19) -> 0 | E140: 15
C141: =IF($B$5=INDEX($B$6:$B$7,1,1),96,'investissement réel'!C20) -> 0 | D141: =IF($B$5=INDEX($B$6:$B$7,1,1),G40,'investissement réel'!D20) -> 0 | E141: 15
B142: Onduleurs (48volt/3000va) | C142: =IF($B$5=INDEX($B$6:$B$7,1,1),F103,'investissement réel'!C12) -> 1 | D142: =IF($B$5=INDEX($B$6:$B$7,1,1),421387,'investissement réel'!D12) -> 421386.77 | E142: 10 | F142: =C142*D142 -> 421386.77 | G142: =IFERROR(F142/E142,0) -> 42138.677
B153: TOTAL (F CFA) | F153: =SUM(F125:F152) -> 24393470.24 | G153: =SUM(G125:G152) -> 2353095.227
B155: Calcul des recettes d'exploitation
B157: RECETTES D'EXPLOITATION
B158: Désignation | C158: Quantité KG/jour | E158: Prix unitaire | F158: Recettes mensulles | G158: Recettes annuelles | K158: 0.02
B159: service conservation | C159: =F107 -> 591300 | E159: 10 | F159: =G159/12 -> 492750 | G159: =C159*E159 -> 5913000
F160: =C160*E160*25 -> 0 | G160: =F160*12 -> 0
F161: 0 | G161: 0
B162: TOTAL (F CFA) | F162: =SUM(F159:F161) -> 492750 | G162: =SUM(G159:G161) -> 5913000
B164: Ressources et Financement des investissements
B166: BFR (Besoin en fonds de roulement)
B167: Type de tiers | C167: Client/fournisseur | D167: Délais de paiement / stocks (jours) | E167: Part des achats/ventes
C168: founisseur | D168: 0 | E168: 1
C169: client | D169: 0 | E169: 1
B171: Créances clients | C171: =((D169*F162/365*E169)) -> 0
B172: Crédit fournisseurs | C172: =(D168*F121*E168/365)*-1 -> 0
B173: Impact Stocks consommable | C173: 0
B174: Impact Stocks produits finis | C174: 0
B175: BFR | D175: F CFA
B178: SCHÉMA DE FINANCEMENT | F178: ECHEANCIER DE REMBOURSEMENT
B179: Désignation | C179: Part | D179: Montant total TTC | F179: Année | G179: Remboursement Capital | H179: Intérêts | I179: Reste | J179: Annuité | K179: mensualité
B180: Investissements | D180: =F153 -> 24393470.24 | F180: =IF(D187>10,"nb an insuffisant",IF(D187>=1,1,"-")) -> 1 | G180: =SUMIFS('Remboursement Mensualités'!C$14:C$133,'Remboursement Mensualités'!$F$14:$F$133,F180) -> 2666549.341 | H180: =SUMIFS('Remboursement Mensualités'!D$14:D$133,'Remboursement Mensualités'!$F$14:$F$133,F180) -> 1483815.214 | I180: =SUMIFS('Remboursement Mensualités'!E$14:E$133,'Remboursement Mensualités'!$F$14:$F$133,F180) -> 259763068.6 | J180: =G180+H180 -> 4150364.555 | K180: =J180/12 -> 345863.7129
B181: Besoin en fonds de roulement | D181: =C175 -> 0 | F181: =IF(D187>10,"nb an insuffisant",IF(D187>=2,2,"-")) -> 2 | G181: =SUMIFS('Remboursement Mensualités'!C$14:C$133,'Remboursement Mensualités'!$F$14:$F$133,F181) -> 2853207.795 | H181: =SUMIFS('Remboursement Mensualités'!D$14:D$133,'Remboursement Mensualités'!$F$14:$F$133,F181) -> 1297156.76 | I181: =SUMIFS('Remboursement Mensualités'!E$14:E$133,'Remboursement Mensualités'!$F$14:$F$133,F181) -> 226563737 | J181: =G181+H181 -> 4150364.555 | K181: =J181/12 -> 345863.7129
B182: COÛT TOTAL (F CFA) | D182: =SUM(D180:D181) -> 24393470.24 | F182: =IF(D187>10,"nb an insuffisant",IF(D187>=3,3,"-")) -> 3 | G182: =SUMIFS('Remboursement Mensualités'!C$14:C$133,'Remboursement Mensualités'!$F$14:$F$133,F182) -> 3052932.34 | H182: =SUMIFS('Remboursement Mensualités'!D$14:D$133,'Remboursement Mensualités'!$F$14:$F$133,F182) -> 1097432.215 | I182: =SUMIFS('Remboursement Mensualités'!E$14:E$133,'Remboursement Mensualités'!$F$14:$F$133,F182) -> 191040452.1 | J182: 4150364.555 | K182: 345863.7129
B183: Apport personnel | C183: =D183/D182 -> 0.05399379371 | D183: 1317096 | F183: =IF(D187>10,"nb an insuffisant",IF(D187>=4,4,"-")) -> 4 | G183: =SUMIFS('Remboursement Mensualités'!C$14:C$133,'Remboursement Mensualités'!$F$14:$F$133,F183) -> 3266637.604 | H183: =SUMIFS('Remboursement Mensualités'!D$14:D$133,'Remboursement Mensualités'!$F$14:$F$133,F183) -> 883726.9507 | I183: =SUMIFS('Remboursement Mensualités'!E$14:E$133,'Remboursement Mensualités'!$F$14:$F$133,F183) -> 153030537.3 | J183: 4150364.555 | K183: 345863.7129
B184: Subvention | C184: 0 | D184: =C184*D182 -> 0 | F184: =IF(D187>10,"nb an insuffisant",IF(D187>=5,5,"-")) -> 5 | G184: =SUMIFS('Remboursement Mensualités'!C$14:C$133,'Remboursement Mensualités'!$F$14:$F$133,F184) -> 3495302.236 | H184: =SUMIFS('Remboursement Mensualités'!D$14:D$133,'Remboursement Mensualités'!$F$14:$F$133,F184) -> 655062.3184 | I184: =SUMIFS('Remboursement Mensualités'!E$14:E$133,'Remboursement Mensualités'!$F$14:$F$133,F184) -> 112359928.5 | J184: 4150364.555 | K184: 345863.7129
B185: Emprunt | C185: =100%-C183-C184 -> 0.9460062063 | D185: =C185*D182 -> 23076374.24 | F185: =IF(D187>10,"nb an insuffisant",IF(D187>=6,6,"-")) -> 6 | G185: =SUMIFS('Remboursement Mensualités'!C$14:C$133,'Remboursement Mensualités'!$F$14:$F$133,F185) -> 3739973.393 | H185: =SUMIFS('Remboursement Mensualités'!D$14:D$133,'Remboursement Mensualités'!$F$14:$F$133,F185) -> 410391.1619 | I185: =SUMIFS('Remboursement Mensualités'!E$14:E$133,'Remboursement Mensualités'!$F$14:$F$133,F185) -> 68842377.04 | J185: 4150364.555 | K185: 345863.7129
B186: Taux d'interet annuel de l'emprunt % | D186: 0.07 | F186: =IF($D$187>10,"nb an insuffisant",IF($D$187>=7,7,"-")) -> 7 | G186: =SUMIFS('Remboursement Mensualités'!C$14:C$133,'Remboursement Mensualités'!$F$14:$F$133,F186) -> 4001771.531 | H186: =SUMIFS('Remboursement Mensualités'!D$14:D$133,'Remboursement Mensualités'!$F$14:$F$133,F186) -> 148593.0244 | I186: =SUMIFS('Remboursement Mensualités'!E$14:E$133,'Remboursement Mensualités'!$F$14:$F$133,F186) -> 22278596.98 | J186: =G186+H186 -> 4150364.555 | K186: 345863.7129
B187: Remboursement de l'emprunt (années) | D187: 7 | F187: =IF($D$187>10,"nb an insuffisant",IF($D$187>=8,8,"-")) -> - | G187: =SUMIFS('Remboursement Mensualités'!C$14:C$133,'Remboursement Mensualités'!$F$14:$F$133,F187) -> 0 | H187: =SUMIFS('Remboursement Mensualités'!D$14:D$133,'Remboursement Mensualités'!$F$14:$F$133,F187) -> 0 | I187: =SUMIFS('Remboursement Mensualités'!E$14:E$133,'Remboursement Mensualités'!$F$14:$F$133,'Table rentabilité optimisé'!$F187) -> 0 | J187: =SUMIFS('Remboursement Mensualités'!B$14:B$133,'Remboursement Mensualités'!$F$14:$F$133,'Table rentabilité optimisé'!$F187) -> 0 | K187: 0
F188: =IF($D$187>10,"nb an insuffisant",IF($D$187>=9,9,"-")) -> - | G188: =SUMIFS('Remboursement Mensualités'!C$14:C$133,'Remboursement Mensualités'!$F$14:$F$133,'Table rentabilité optimisé'!$F188) -> 0 | H188: =SUMIFS('Remboursement Mensualités'!D$14:D$133,'Remboursement Mensualités'!$F$14:$F$133,'Table rentabilité optimisé'!$F188) -> 0 | I188: =SUMIFS('Remboursement Mensualités'!E$14:E$133,'Remboursement Mensualités'!$F$14:$F$133,'Table rentabilité optimisé'!$F188) -> 0 | J188: =SUMIFS('Remboursement Mensualités'!B$14:B$133,'Remboursement Mensualités'!$F$14:$F$133,'Table rentabilité optimisé'!$F188) -> 0 | K188: 0
F189: =IF(D187>10,"nb an insuffisant",IF(D187>=10,"Année 10","-")) -> - | G189: =SUMIFS('Remboursement Mensualités'!C$14:C$133,'Remboursement Mensualités'!$F$14:$F$133,'Table rentabilité optimisé'!$F189) -> 0 | H189: =SUMIFS('Remboursement Mensualités'!D$14:D$133,'Remboursement Mensualités'!$F$14:$F$133,'Table rentabilité optimisé'!$F189) -> 0 | I189: =SUMIFS('Remboursement Mensualités'!E$14:E$133,'Remboursement Mensualités'!$F$14:$F$133,'Table rentabilité optimisé'!$F189) -> 0 | J189: =SUMIFS('Remboursement Mensualités'!B$14:B$133,'Remboursement Mensualités'!$F$14:$F$133,'Table rentabilité optimisé'!$F189) -> 0 | K189: 0
F190: TOTAL | G190: =SUM(G180:G189) -> 23076374.24 | H190: =SUM(H180:H189) -> 5976177.644 | J190: =SUM(J180:J189) -> 29052551.88 | K190: =SUM(K180:K189) -> 2421045.99
B193: Ressources et Financement des investissements
B195: RESULTAT BRUT D'EXPLOITATION (EBE)
B196: Désignation / Durée (années) | C196: 0 | D196: 1 | E196: 2 | F196: 3 | G196: 4 | H196: 5 | I196: 6 | J196: 7 | K196: 8 | L196: 9 | M196: Total
B197: Recettes | C197: =D185+D183 -> 24393470.24 | D197: =G162 -> 5913000 | E197: =D197+($K$158*D197) -> 6031260 | F197: 6151885.2 | G197: 6274922.904 | H197: 6400421.362 | I197: 6528429.789 | J197: 6658998.385 | K197: 6792178.353 | L197: 6928021.92 | M197: =SUM(C197:L197) -> 82072588.15
B198: Dépenses | C198: =D180 -> 24393470.24 | D198: =F121 -> 1418040 | E198: =D198+($K$113*D198) -> 1446400.8 | F198: =E198+($K$113*E198) -> 1475328.816 | G198: 1504835.392 | H198: 1534932.1 | I198: 1565630.742 | J198: 1596943.357 | K198: 1628882.224 | L198: 1661459.869 | M198: 38225923.54
B199: Amortissements | C199: 0 | D199: =$G$153 -> 2353095.227 | E199: 2353095.227 | F199: 2353095.227 | G199: 2353095.227 | H199: 2353095.227 | I199: 2353095.227 | J199: 2353095.227 | K199: 2353095.227 | L199: 2353095.227 | M199: 21177857.05
B200: Remboursement emprunt | C200: 0 | D200: =IFERROR(INDEX($J$180:$J$189,MATCH(D196,$F$180:$F$189,0)),0) -> 4150364.555 | E200: =IFERROR(INDEX($J$180:$J$189,MATCH(E196,$F$180:$F$189,0)),0) -> 4150364.555 | F200: 4150364.555 | G200: 4150364.555 | H200: 4150364.555 | I200: 4150364.555 | J200: 4150364.555 | K200: 0 | L200: 0 | M200: 29052551.88
B201: Bénéfice avant impôts (EBITDA) | C201: 0 | D201: =D197-SUM(D198:D200) -> -2008499.782 | E201: =E197-SUM(E198:E200) -> -1918600.582 | F201: -1826903.398 | G201: -1733372.271 | H201: -1637970.52 | I201: -1540660.735 | J201: -1441404.754 | K201: 2810200.901 | L201: 2913466.824 | M201: -6383744.318
B202: Impôts sur le bénéfice | C202: 0 | D202: =IF(D201<0,0,0.3*D201) -> 0 | E202: =IF(E201<0,0,0.3*E201) -> 0 | F202: 0 | G202: 0 | H202: 0 | I202: 0 | J202: 0 | K202: 843060.2704 | L202: 874040.0472 | M202: 1717100.318
B203: Bénéfice après impôts | C203: 0 | D203: =D201-D202 -> -2008499.782 | E203: =E201-E202 -> -1918600.582 | F203: -1826903.398 | G203: -1733372.271 | H203: -1637970.52 | I203: -1540660.735 | J203: -1441404.754 | K203: 1967140.631 | L203: 2039426.777 | M203: -8100844.635
B204: Trésorerie | C204: =C197-C198 -> 0 | D204: =C204+D203 -> -2008499.782 | E204: =D204+E203 -> -3927100.364 | F204: -5754003.763 | G204: -7487376.033 | H204: -9125346.554 | I204: -10666007.29 | J204: -12107412.04 | K204: -10140271.41 | L204: -8100844.635
B205: Cash Flows | C205: 0 | D205: =D203+D200-($H$190/$D$187) -> 1288125.109 | E205: =E203+E200-($H$190/$D$187) -> 1378024.309 | F205: 1469721.493 | G205: 1563252.621 | H205: 1658654.371 | I205: 1755964.156 | J205: 1855220.137 | K205: 1113400.967 | L205: 1185687.113
B206: Cash Flows cumulés | C206: =-C198 -> -24393470.24 | D206: =C206+D205 -> -23105345.13 | E206: -21727320.82 | F206: -20257599.33 | G206: -18694346.71 | H206: -17035692.34 | I206: -15279728.18 | J206: -13424508.04 | K206: -12311107.08 | L206: -11125419.96
B209: Indicateurs économiques
B211: VAN | C211: =NPV(F211,IF(D196<=H211,D205,0),IF(E196<=H211,E205,0),IF(F196<=H211,F205,0),IF(G196<=H211,G205,0),IF(H196<=H211,H205,0),IF(I196<=H211,I205,0),IF(J196<=H211,J205,0),IF(K196<=H211,K205,0),IF(L196<=H211,L205,0))-D180 -> -13914788.28 | D211: FCFA | E211: Taux d'actualisation | F211: 0.05 | G211: Durée VAN (ans) | H211: 9 | N211: =-D180+IF(H211>=D196,(D203+D200-H190/D187)*((1+F211)^-1),0)+IF(H211>=E196,(E203+E200-H190/D187)*((1+F211)^-2),0)+IF(H211>=F196,(F203+F200-H190/D187)*((1+F211)^-3),0)+IF(H211>=G196,(G203+G200-H190/D187)*((1+F211)^-4),0)+IF(H211>=H196,(H203+H200-H190/D187)*((1+F211)^-5),0)+IF(H211>=I196,(I203+I200-H190/D187)*((1+F211)^-6),0)+IF(H211>=J196,(J203+J200-H190/D187)*((1+F211)^-7),0)+IF(H211>=K196,(K203+K200-H190/D187)*((1+F211)^-8),0)+IF(H211>=L196,(L203+L200-H190/D187)*((1+F211)^-9),0) -> -13914788.28 | O211: calcul VAN
B212: TRI | C212: =IRR(N212:W212) -> -0.1081987426 | N212: =-D180 -> -24393470.24 | O212: =IF(D196<=H211,D205,0) -> 1288125.109 | P212: =IF(E196<=H211,E205,0) -> 1378024.309 | Q212: =IF(F196<=H211,F205,0) -> 1469721.493 | R212: =IF(G196<=H211,G205,0) -> 1563252.621 | S212: =IF(H196<=H211,H205,0) -> 1658654.371 | T212: =IF(I196<=H211,I205,0) -> 1755964.156 | U212: =IF(J196<=H211,J205,0) -> 1855220.137 | V212: =IF(K196<=H211,K205,0) -> 1113400.967 | W212: =IF(L196<=H211,L205,0) -> 1185687.113
B213: IPI | C213: =SUM(O212:W212)/D180 -> 0.543918112 | D213: ="Pour 1000 CFA investis, on récupère "&ROUND(N213,0)&" CFA" -> Pour 1000 CFA investis, on récupère -456 CFA | N213: =(C213-1)*1000 -> -456.081888
B214: DCRI | C214: =N214+(-P214/(O214-P214)) ->  | D214: ="Le délai de récupération est de "&ROUNDDOWN(C214,0)&" ans et "&ROUNDDOWN((C214-ROUNDDOWN(C214,0))*12,0)&" mois" ->  | N214: =IF(AND(L206<0,L196<=H211),L196,IF(AND(K206<0,K196<=H211),K196,IF(AND(J206<0,J196<=H211),J196,IF(AND(I206<0,I196<=H211),I196,IF(AND(H206<0,H196<=H211),H196,IF(AND(G206<0,G196<=H211),G196,IF(AND(F206<0,F196<=H211),F196,IF(AND(E206<0,E196<=H211),E196,IF(AND(D206<0,D196<=H211),D196,IF(AND(C206<0,C196<=H211),C196)))))))))) -> 9 | O214: =INDEX(C206:L206,MATCH(INDEX(C196:L196,MATCH(P214,C206:L206,0))+1,C196:L196,0)) ->  | P214: =IF(AND(L206<0,L196<=H211),L206,IF(AND(K206<0,K196<=H211),K206,IF(AND(J206<0,J196<=H211),J206,IF(AND(I206<0,I196<=H211),I206,IF(AND(H206<0,H196<=H211),H206,IF(AND(G206<0,G196<=H211),G206,IF(AND(F206<0,F196<=H211),F206,IF(AND(E206<0,E196<=H211),E206,IF(AND(D206<0,D196<=H211),D206,IF(AND(C206<0,C196<=H211),C206)))))))))) -> -11125419.96
B215: DSCR | C215: =(D197-D198)/(D200) -> 1.083027753

Sheet investissement réel
B3: Désignation | C3: Quantité | D3: Prix unitaire TTC | E3: Montant Total TTC | F3: Durée de vie (an) | G3: Amortissement annuel
B4: Panneaux solaire | C4: 16 | D4: 47622.48 | E4: =C4*D4 -> 761959.68 | F4: 20 | G4: =E4/F4 -> 38097.984
B5: Equipements frigorifique | C5: 1 | D5: 6556749.38 | E5: =C5*D5 -> 6556749.38 | F5: 15 | G5: =E5/F5 -> 437116.6253
B6: Batteries | C6: 24 | D6: 257594.31 | E6: =C6*D6 -> 6182263.44 | F6: 5 | G6: 1236452.688
B7: Hangar | C7: 1 | D7: 4500000 | E7: 4500000 | F7: 10 | G7: 450000
B8: Autres accessoires (petits matériels) | C8: 1 | D8: 857007.82 | E8: 857007.82 | F8: 10 | G8: 85700.782
B9: Onduleurs 48/2000VA | C9: 1 | D9: 313875.42 | E9: 313875.42 | F9: 10 | G9: 31387.542
B10: Régulateurs | C10: 1 | D10: 322009.29 | E10: 322009.29 | F10: 10 | G10: 32200.929
B11: Main d'œuvre | C11: 1 | D11: 4478218.44 | E11: 4478218.44
B12: Onduleurs 48/3000VA | C12: 1 | D12: 421386.77 | E12: 421386.77 | F12: 10 | G12: 42138.677
E13: 0
E14: 0
E15: 0
E16: =C16*D16 -> 0
E17: 0
E18: 0
E19: 0
E20: 0
E21: =C21*D21 -> 0
E22: 0
B23: TOTAL (F CFA) | E23: =SUM(E4:E22) -> 24393470.24 | G23: =SUM(G4:G22) -> 2353095.227

Sheet Remboursement Mensualités (hidden)
A1: Remboursement de prêt
A2: Taux annuel | B2: ='Table rentabilité optimisé'!D186 -> 0.07
A3: Capital emprunté | B3: ='Table rentabilité optimisé'!D185 -> 23076374.24
A4: Durée du prêt (en année) | B4: ='Table rentabilité optimisé'!D187 -> 7 | C4: =B4*12 -> 84
A5: Mensualité à régler | B5: =-PMT((1+B2)^(1/12)-1,B4*12,B3) -> 345863.7129 | C5: Formule mensualité | D5: =-VPM((1+B2)^(1/12)-1;B4*12;B3)
A7: Décomposition de la mensualité
A8: Remboursement du principal | B8: =-PPMT((1+B2)^(1/12)-1,1,B4*12,B3) -> 215386.5379 | C8: Formule principal | D8: =-PRINCPER((1+B2)^(1/12)-1;1;B4*12;B3)
A9: Remboursement des interêts | B9: =-IPMT((1+B2)^(1/12)-1,1,B4*12,B3) -> 130477.175 | C9: Formule intérêt | D9: =-INTPER((1+B2)^(1/12)-1;1;B4*12;B3)
A12: Dans les formules ci-dessous Taux de période = TP = (1+$B$2)^(1/12)-1
A13: Périodes | B13: Mensualité | C13: Capital | D13: Intérêts | E13: Reste (ou résiduel) | F13: Années
A14: =IF(B4<>0,1,"-") -> 1 | B14: =IF(A14<>"-",C14+D14,"") -> 345863.7129 | C14: =IF(A14<>"-",-PPMT((1+$B$2)^(1/12)-1,A14,$B$4*12,$B$3),"") -> 215386.5379 | D14: =IF(A14<>"-",-IPMT((1+$B$2)^(1/12)-1,A14,$B$4*12,$B$3),"") -> 130477.175 | E14: =IF(A14<>"-",$B$3+CUMPRINC((1+$B$2)^(1/12)-1,$B$4*12,$B$3,1,A14,0),"") -> 22860987.7 | F14: =IF(A14<>"-",1,"") -> 1 | G14: =IF(A14<>"-",1,"") -> 1
A15: =IF(AND($B$4<>0,A14<$C$4),A14+1,"-") -> 2 | B15: 345863.7129 | C15: =IF(A15<>"-",-PPMT((1+$B$2)^(1/12)-1,A15,$B$4*12,$B$3),"") -> 216604.3647 | D15: 129259.3482 | E15: 22644383.34 | F15: =IF(A15<>"-",IF(G14<G15,F14,F14+1),"") -> 1 | G15: =IF(A15="-","",IF(G14<12,G14+1,1)) -> 2
A16: 3 | B16: 345863.7129 | C16: =IF(A16<>"-",-PPMT((1+$B$2)^(1/12)-1,A16,$B$4*12,$B$3),"") -> 217829.0773 | D16: 128034.6356 | E16: 22426554.26 | F16: 1 | G16: 3
A17: 4 | B17: 345863.7129 | C17: 219060.7146 | D17: 126802.9983 | E17: 22207493.55 | F17: 1 | G17: 4
A18: 5 | B18: 345863.7129 | C18: 220299.3157 | D18: 125564.3972 | E18: 21987194.23 | F18: 1 | G18: 5
A19: 6 | B19: 345863.7129 | C19: 221544.9201 | D19: 124318.7928 | E19: 21765649.31 | F19: 1 | G19: 6
A20: 7 | B20: 345863.7129 | C20: 222797.5673 | D20: 123066.1456 | E20: 21542851.74 | F20: 1 | G20: 7
A21: 8 | B21: 345863.7129 | C21: 224057.2971 | D21: 121806.4158 | E21: 21318794.45 | F21: 1 | G21: 8
A22: 9 | B22: 345863.7129 | C22: 225324.1496 | D22: 120539.5633 | E22: 21093470.3 | F22: 1 | G22: 9
A23: 10 | B23: 345863.7129 | C23: 226598.1651 | D23: 119265.5478 | E23: 20866872.13 | F23: 1 | G23: 10
A24: 11 | B24: 345863.7129 | C24: 227879.3841 | D24: 117984.3288 | E24: 20638992.75 | F24: 1 | G24: 11
A25: 12 | B25: 345863.7129 | C25: 229167.8473 | D25: 116695.8656 | E25: 20409824.9 | F25: 1 | G25: 12
A26: 13 | B26: 345863.7129 | C26: 230463.5956 | D26: 115400.1173 | E26: 20179361.3 | F26: 2 | G26: 1
A27: 14 | B27: 345863.7129 | C27: 231766.6703 | D27: 114097.0426 | E27: 19947594.63 | F27: 2 | G27: 2
A28: 15 | B28: 345863.7129 | C28: 233077.1127 | D28: 112786.6002 | E28: 19714517.52 | F28: 2 | G28: 3
A29: 16 | B29: 345863.7129 | C29: 234394.9646 | D29: 111468.7483 | E29: 19480122.56 | F29: 2 | G29: 4
A30: 17 | B30: 345863.7129 | C30: 235720.2678 | D30: 110143.4451 | E30: 19244402.29 | F30: 2 | G30: 5
A31: 18 | B31: 345863.7129 | C31: 237053.0645 | D31: 108810.6484 | E31: 19007349.22 | F31: 2 | G31: 6
A32: 19 | B32: 345863.7129 | C32: 238393.397 | D32: 107470.3159 | E32: 18768955.83 | F32: 2 | G32: 7
A33: 20 | B33: 345863.7129 | C33: 239741.3079 | D33: 106122.405 | E33: 18529214.52 | F33: 2 | G33: 8
A34: 21 | B34: 345863.7129 | C34: 241096.8401 | D34: 104766.8728 | E34: 18288117.68 | F34: 2 | G34: 9
A35: 22 | B35: 345863.7129 | C35: 242460.0367 | D35: 103403.6762 | E35: 18045657.64 | F35: 2 | G35: 10
A36: 23 | B36: 345863.7129 | C36: 243830.941 | D36: 102032.7719 | E36: 17801826.7 | F36: 2 | G36: 11
A37: 24 | B37: 345863.7129 | C37: 245209.5966 | D37: 100654.1163 | E37: 17556617.1 | F37: 2 | G37: 12
A38: 25 | B38: 345863.7129 | C38: 246596.0473 | D38: 99267.66562 | E38: 17310021.06 | F38: 3 | G38: 1
A39: 26 | B39: 345863.7129 | C39: 247990.3372 | D39: 97873.37572 | E39: 17062030.72 | F39: 3 | G39: 2
A40: 27 | B40: 345863.7129 | C40: 249392.5106 | D40: 96471.2023 | E40: 16812638.21 | F40: 3 | G40: 3
A41: 28 | B41: 345863.7129 | C41: 250802.6121 | D41: 95061.10078 | E41: 16561835.6 | F41: 3 | G41: 4
A42: 29 | B42: 345863.7129 | C42: 252220.6866 | D42: 93643.02635 | E42: 16309614.91 | F42: 3 | G42: 5
A43: 30 | B43: 345863.7129 | C43: 253646.779 | D43: 92216.93392 | E43: 16055968.13 | F43: 3 | G43: 6
A44: 31 | B44: 345863.7129 | C44: 255080.9348 | D44: 90782.77815 | E44: 15800887.2 | F44: 3 | G44: 7
A45: 32 | B45: 345863.7129 | C45: 256523.1994 | D45: 89340.51346 | E45: 15544364 | F45: 3 | G45: 8
A46: 33 | B46: 345863.7129 | C46: 257973.6189 | D46: 87890.094 | E46: 15286390.38 | F46: 3 | G46: 9
A47: 34 | B47: 345863.7129 | C47: 259432.2393 | D47: 86431.47365 | E47: 15026958.14 | F47: 3 | G47: 10
A48: 35 | B48: 345863.7129 | C48: 260899.1069 | D48: 84964.60605 | E48: 14766059.03 | F48: 3 | G48: 11
A49: 36 | B49: 345863.7129 | C49: 262374.2683 | D49: 83489.44457 | E49: 14503684.76 | F49: 3 | G49: 12
A50: 37 | B50: 345863.7129 | C50: 263857.7706 | D50: 82005.94231 | E50: 14239826.99 | F50: 4 | G50: 1
A51: 38 | B51: 345863.7129 | C51: 265349.6608 | D51: 80514.05211 | E51: 13974477.33 | F51: 4 | G51: 2
A52: 39 | B52: 345863.7129 | C52: 266849.9864 | D52: 79013.72655 | E52: 13707627.35 | F52: 4 | G52: 3
A53: 40 | B53: 345863.7129 | C53: 268358.795 | D53: 77504.91793 | E53: 13439268.55 | F53: 4 | G53: 4
A54: 41 | B54: 345863.7129 | C54: 269876.1346 | D54: 75987.57829 | E54: 13169392.42 | F54: 4 | G54: 5
A55: 42 | B55: 345863.7129 | C55: 271402.0535 | D55: 74461.65939 | E55: 12897990.36 | F55: 4 | G55: 6
A56: 43 | B56: 345863.7129 | C56: 272936.6002 | D56: 72927.11272 | E56: 12625053.76 | F56: 4 | G56: 7
A57: 44 | B57: 345863.7129 | C57: 274479.8234 | D57: 71383.8895 | E57: 12350573.94 | F57: 4 | G57: 8
A58: 45 | B58: 345863.7129 | C58: 276031.7722 | D58: 69831.94067 | E58: 12074542.17 | F58: 4 | G58: 9
A59: 46 | B59: 345863.7129 | C59: 277592.496 | D59: 68271.2169 | E59: 11796949.67 | F59: 4 | G59: 10
A60: 47 | B60: 345863.7129 | C60: 279162.0443 | D60: 66701.66857 | E60: 11517787.63 | F60: 4 | G60: 11
A61: 48 | B61: 345863.7129 | C61: 280740.4671 | D61: 65123.24578 | E61: 11237047.16 | F61: 4 | G61: 12
A62: 49 | B62: 345863.7129 | C62: 282327.8145 | D62: 63535.89837 | E62: 10954719.35 | F62: 5 | G62: 1
A63: 50 | B63: 345863.7129 | C63: 283924.1371 | D63: 61939.57586 | E63: 10670795.21 | F63: 5 | G63: 2
A64: 51 | B64: 345863.7129 | C64: 285529.4854 | D64: 60334.22751 | E64: 10385265.72 | F64: 5 | G64: 3
A65: 52 | B65: 345863.7129 | C65: 287143.9106 | D65: 58719.80228 | E65: 10098121.81 | F65: 5 | G65: 4
A66: 53 | B66: 345863.7129 | C66: 288767.464 | D66: 57096.24887 | E66: 9809354.348 | F66: 5 | G66: 5
A67: 54 | B67: 345863.7129 | C67: 290400.1973 | D67: 55463.51564 | E67: 9518954.151 | F67: 5 | G67: 6
A68: 55 | B68: 345863.7129 | C68: 292042.1622 | D68: 53821.55071 | E68: 9226911.989 | F68: 5 | G68: 7
A69: 56 | B69: 345863.7129 | C69: 293693.411 | D69: 52170.30186 | E69: 8933218.578 | F69: 5 | G69: 8
A70: 57 | B70: 345863.7129 | C70: 295353.9963 | D70: 50509.71662 | E70: 8637864.581 | F70: 5 | G70: 9
A71: 58 | B71: 345863.7129 | C71: 297023.9707 | D71: 48839.74218 | E71: 8340840.611 | F71: 5 | G71: 10
A72: 59 | B72: 345863.7129 | C72: 298703.3874 | D72: 47160.32547 | E72: 8042137.223 | F72: 5 | G72: 11
A73: 60 | B73: 345863.7129 | C73: 300392.2998 | D73: 45471.41309 | E73: 7741744.924 | F73: 5 | G73: 12
A74: 61 | B74: 345863.7129 | C74: 302090.7616 | D74: 43772.95135 | E74: 7439654.162 | F74: 6 | G74: 1
A75: 62 | B75: 345863.7129 | C75: 303798.8266 | D75: 42064.88626 | E75: 7135855.335 | F75: 6 | G75: 2
A76: 63 | B76: 345863.7129 | C76: 305516.5494 | D76: 40347.16353 | E76: 6830338.786 | F76: 6 | G76: 3
A77: 64 | B77: 345863.7129 | C77: 307243.9844 | D77: 38619.72854 | E77: 6523094.802 | F77: 6 | G77: 4
A78: 65 | B78: 345863.7129 | C78: 308981.1865 | D78: 36882.52638 | E78: 6214113.615 | F78: 6 | G78: 5
A79: 66 | B79: 345863.7129 | C79: 310728.2111 | D79: 35135.50183 | E79: 5903385.404 | F79: 6 | G79: 6
A80: 67 | B80: 345863.7129 | C80: 312485.1136 | D80: 33378.59935 | E80: 5590900.29 | F80: 6 | G80: 7
A81: 68 | B81: 345863.7129 | C81: 314251.9498 | D81: 31611.76309 | E81: 5276648.341 | F81: 6 | G81: 8
A82: 69 | B82: 345863.7129 | C82: 316028.776 | D82: 29834.93688 | E82: 4960619.565 | F82: 6 | G82: 9
A83: 70 | B83: 345863.7129 | C83: 317815.6487 | D83: 28048.06423 | E83: 4642803.916 | F83: 6 | G83: 10
A84: 71 | B84: 345863.7129 | C84: 319612.6246 | D84: 26251.08835 | E84: 4323191.291 | F84: 6 | G84: 11
A85: 72 | B85: 345863.7129 | C85: 321419.7608 | D85: 24443.9521 | E85: 4001771.531 | F85: 6 | G85: 12
A86: 73 | B86: 345863.7129 | C86: 323237.1149 | D86: 22626.59804 | E86: 3678534.416 | F86: 7 | G86: 1
A87: 74 | B87: 345863.7129 | C87: 325064.7445 | D87: 20798.9684 | E87: 3353469.671 | F87: 7 | G87: 2
A88: 75 | B88: 345863.7129 | C88: 326902.7078 | D88: 18961.00507 | E88: 3026566.963 | F88: 7 | G88: 3
A89: 76 | B89: 345863.7129 | C89: 328751.0633 | D89: 17112.64964 | E89: 2697815.9 | F89: 7 | G89: 4
A90: 77 | B90: 345863.7129 | C90: 330609.8696 | D90: 15253.84333 | E90: 2367206.03 | F90: 7 | G90: 5
A91: 78 | B91: 345863.7129 | C91: 332479.1858 | D91: 13384.52706 | E91: 2034726.845 | F91: 7 | G91: 6
A92: 79 | B92: 345863.7129 | C92: 334359.0715 | D92: 11504.6414 | E92: 1700367.773 | F92: 7 | G92: 7
A93: 80 | B93: 345863.7129 | C93: 336249.5863 | D93: 9614.126601 | E93: 1364118.187 | F93: 7 | G93: 8
A94: 81 | B94: 345863.7129 | C94: 338150.7904 | D94: 7712.922554 | E94: 1025967.396 | F94: 7 | G94: 9
A95: 82 | B95: 345863.7129 | C95: 340062.7441 | D95: 5800.968822 | E95: 685904.6523 | F95: 7 | G95: 10
A96: 83 | B96: 345863.7129 | C96: 341985.5083 | D96: 3878.204626 | E96: 343919.1441 | F96: 7 | G96: 11
A97: 84 | B97: 345863.7129 | C97: 343919.1441 | D97: 1944.568842 | E97: 0 | F97: 7 | G97: 12
A98: -
A99: -
A100: -
A101: -
A102: -
A103: -
A104: -
A105: -
A106: -
A107: -
A108: -
A109: -
A110: -
A111: -
A112: -
A113: -
A114: -
A115: -
A116: -
A117: -
A118: -
A119: -
A120: -
A121: -
A122: -
A123: -
A124: -
A125: -
A126: -
A127: -
A128: -
A129: -
A130: -
A131: -
A132: -
A133: -
